[Event "*** MasterClass Titled Tuesday Blitz"]
[Site "Chess.com"]
[Date "2017.08.01"]
[Round "2"]
[White "peteseeger"]
[Black "Makalexa"]
[Result "0-1"]
[WhiteElo "2097"]
[BlackElo "2161"]
[TimeControl "180+2"]
[EndTime "13:23:02 PDT"]
[Termination "Makalexa won by resignation"]

1. e4 {[%clk 0:03:01.9]} 1... e5 {[%clk 0:02:59.3]} 2. Nf3 {[%clk 0:03:02.6]}
2... Nc6 {[%clk 0:03:00.2]} 3. d4 {[%clk 0:03:03.2]} 3... exd4 {[%clk
0:03:00.1]} 4. Nxd4 {[%clk 0:03:03.9]} 4... Bc5 {[%clk 0:03:01.4]} 5. Be3 {[%clk
0:03:03.6]} 5... Qf6 {[%clk 0:03:01.6]} 6. c3 {[%clk 0:03:03.9]} 6... Nge7
{[%clk 0:03:01.8]} 7. Bc4 {[%clk 0:03:04.3]} 7... O-O {[%clk 0:03:00.6]} 8. O-O
{[%clk 0:03:04.7]} 8... b6 {[%clk 0:03:00.6]} 9. Qd2 {[%clk 0:03:05.1]} 9... d5
{[%clk 0:02:59]} 10. Nxc6 {[%clk 0:02:30.5]} 10... dxc4 {[%clk 0:02:47.2]} 11.
Bxc5 {[%clk 0:02:28.2]} 11... bxc5 {[%clk 0:02:13.8]} 12. Nxe7+ {[%clk
0:02:20.4]} 12... Qxe7 {[%clk 0:02:13.7]} 13. f3 {[%clk 0:02:20]} 13... Rb8
{[%clk 0:02:13.3]} 14. Na3 {[%clk 0:02:17.6]} 14... Ba6 {[%clk 0:02:10.5]} 15.
Rfd1 {[%clk 0:02:10.1]} 15... Rfd8 {[%clk 0:02:10]} 16. Qe2 {[%clk 0:02:10.3]}
16... Rxd1+ {[%clk 0:01:57.1]} 17. Rxd1 {[%clk 0:02:09.8]} 17... h6 {[%clk
0:01:52.5]} 18. b3 {[%clk 0:01:59.4]} 18... Qf6 {[%clk 0:01:32.9]} 19. Nxc4
{[%clk 0:01:47.2]} 19... Qxc3 {[%clk 0:01:27.6]} 20. Qd2 {[%clk 0:01:33.6]}
20... Qxd2 {[%clk 0:01:08.6]} 21. Rxd2 {[%clk 0:01:32.8]} 21... Bxc4 {[%clk
0:01:07.4]} 22. bxc4 {[%clk 0:01:34.4]} 22... Rb4 {[%clk 0:01:06.2]} 23. Rd8+
{[%clk 0:01:34.6]} 23... Kh7 {[%clk 0:01:06.1]} 24. Rd7 {[%clk 0:01:36.1]} 24...
Rxc4 {[%clk 0:01:04.9]} 25. Rxc7 {[%clk 0:01:32.2]} 25... Rc1+ {[%clk
0:01:01.2]} 26. Kf2 {[%clk 0:01:31.9]} 26... Rc2+ {[%clk 0:01:01.3]} 27. Kg3
{[%clk 0:01:32.7]} 27... Rxa2 {[%clk 0:01:01.6]} 28. Rxc5 {[%clk 0:01:28.5]}
28... a5 {[%clk 0:01:01.2]} 29. Rc7 {[%clk 0:01:28]} 29... Kg6 {[%clk
0:01:01.2]} 30. f4 {[%clk 0:01:28]} 30... Ra3+ {[%clk 0:01:00.2]} 31. Kg4 {[%clk
0:01:24.9]} 31... h5+ {[%clk 0:00:59.3]} 32. Kh4 {[%clk 0:01:24.8]} 32... a4
{[%clk 0:00:59.4]} 33. h3 {[%clk 0:01:21.1]} 33... Ra2 {[%clk 0:00:56.6]} 34. g4
{[%clk 0:01:20.3]} 34... hxg4 {[%clk 0:00:56.7]} 35. hxg4 {[%clk 0:01:21.1]}
35... a3 {[%clk 0:00:53.7]} 36. e5 {[%clk 0:01:10.8]} 36... Ra1 {[%clk
0:00:46.4]} 37. f5+ {[%clk 0:01:00.9]} 37... Kh7 {[%clk 0:00:44.8]} 38. e6
{[%clk 0:00:52.4]} 38... fxe6 {[%clk 0:00:43.5]} 39. fxe6 {[%clk 0:00:53.1]}
39... Rh1+ {[%clk 0:00:43.7]} 40. Kg5 {[%clk 0:00:52.9]} 40... a2 {[%clk
0:00:43.5]} 0-1

[Event "*** MasterClass Titled Tuesday Blitz"]
[Site "Chess.com"]
[Date "2017.08.01"]
[Round "2"]
[White "Usurpov"]
[Black "Vrolijk"]
[Result "0-1"]
[WhiteElo "2284"]
[BlackElo "2509"]
[TimeControl "180+2"]
[EndTime "13:23:21 PDT"]
[Termination "Vrolijk won by resignation"]

1. e4 {[%clk 0:03:01.9]} 1... e5 {[%clk 0:03:00.8]} 2. Nf3 {[%clk 0:03:01.9]}
2... Nc6 {[%clk 0:03:01.9]} 3. Nc3 {[%clk 0:03:02.7]} 3... Nf6 {[%clk
0:03:02.6]} 4. d4 {[%clk 0:03:03.4]} 4... exd4 {[%clk 0:03:03.6]} 5. Nxd4 {[%clk
0:03:05.3]} 5... Bb4 {[%clk 0:03:04.3]} 6. Nxc6 {[%clk 0:03:06.4]} 6... bxc6
{[%clk 0:03:06.2]} 7. Bd3 {[%clk 0:03:07.7]} 7... d5 {[%clk 0:03:07.4]} 8. exd5
{[%clk 0:03:09.6]} 8... cxd5 {[%clk 0:03:09.3]} 9. O-O {[%clk 0:03:10.6]} 9...
O-O {[%clk 0:03:10.9]} 10. Qf3 {[%clk 0:03:11.8]} 10... Be6 {[%clk 0:03:09.7]}
11. h3 {[%clk 0:03:02.6]} 11... h6 {[%clk 0:03:07.3]} 12. Ne2 {[%clk 0:02:59.6]}
12... c5 {[%clk 0:03:04.2]} 13. c3 {[%clk 0:02:58.4]} 13... Ba5 {[%clk 0:03:05]}
14. Bf4 {[%clk 0:02:50.2]} 14... Qd7 {[%clk 0:02:59]} 15. Rad1 {[%clk
0:02:43.8]} 15... Rfe8 {[%clk 0:02:54.8]} 16. Bxh6 {[%clk 0:02:30.9]} 16... Rab8
{[%clk 0:02:47]} 17. Bc1 {[%clk 0:02:25]} 17... Bc7 {[%clk 0:02:39.1]} 18. c4
{[%clk 0:02:16.2]} 18... d4 {[%clk 0:02:37.4]} 19. b3 {[%clk 0:02:14.5]} 19...
a5 {[%clk 0:02:28.7]} 20. Nf4 {[%clk 0:02:00]} 20... Bxf4 {[%clk 0:02:19.3]} 21.
Bxf4 {[%clk 0:01:57.4]} 21... Rb6 {[%clk 0:02:20.8]} 22. Be5 {[%clk 0:01:52.7]}
22... Bg4 {[%clk 0:02:16.3]} 23. hxg4 {[%clk 0:01:50.8]} 23... Rxe5 {[%clk
0:02:16]} 24. Bf5 {[%clk 0:01:46.4]} 24... Qd8 {[%clk 0:02:03]} 25. Rfe1 {[%clk
0:01:18]} 25... Rxe1+ {[%clk 0:02:03.7]} 26. Rxe1 {[%clk 0:01:19.9]} 26... g6
{[%clk 0:02:05.6]} 27. Bd3 {[%clk 0:01:19.3]} 27... Kg7 {[%clk 0:02:05.4]} 28.
Re5 {[%clk 0:01:16.5]} 28... Nd7 {[%clk 0:02:03.7]} 29. Rd5 {[%clk 0:01:14]}
29... Re6 {[%clk 0:01:55.4]} 30. Qf4 {[%clk 0:00:55.6]} 30... Qe7 {[%clk
0:01:47.1]} 31. g3 {[%clk 0:00:44.3]} 31... Nf6 {[%clk 0:01:28.6]} 32. g5 {[%clk
0:00:21.3]} 32... Nxd5 {[%clk 0:01:27.9]} 33. cxd5 {[%clk 0:00:23.2]} 33... Re1+
{[%clk 0:01:28.5]} 34. Kg2 {[%clk 0:00:24.2]} 34... Qe5 {[%clk 0:01:21.2]} 35.
Qf3 {[%clk 0:00:15.2]} 35... Qxg5 {[%clk 0:01:12.6]} 36. d6 {[%clk 0:00:12.7]}
36... Qh6 {[%clk 0:00:56.6]} 37. Bf1 {[%clk 0:00:09.2]} 37... Re8 {[%clk
0:00:42.6]} 38. Bc4 {[%clk 0:00:07.8]} 38... Rf8 {[%clk 0:00:36.3]} 39. d7
{[%clk 0:00:08.7]} 39... Qg5 {[%clk 0:00:37.3]} 40. Qd5 {[%clk 0:00:08.9]} 40...
Qxd5+ {[%clk 0:00:37.5]} 41. Bxd5 {[%clk 0:00:10.8]} 0-1

[Event "*** MasterClass Titled Tuesday Blitz"]
[Site "Chess.com"]
[Date "2017.08.01"]
[Round "2"]
[White "BigMak2500"]
[Black "Rodalquilar"]
[Result "1-0"]
[WhiteElo "2430"]
[BlackElo "2537"]
[TimeControl "180+2"]
[EndTime "13:23:27 PDT"]
[Termination "BigMak2500 won by checkmate"]

1. e4 {[%clk 0:03:01.9]} 1... e5 {[%clk 0:03:00.7]} 2. Nf3 {[%clk 0:03:03.1]}
2... Nc6 {[%clk 0:03:02.1]} 3. Bc4 {[%clk 0:03:04.6]} 3... d6 {[%clk 0:03:03.3]}
4. c3 {[%clk 0:03:04.6]} 4... Qf6 {[%clk 0:03:02.6]} 5. d3 {[%clk 0:02:57.1]}
5... h6 {[%clk 0:03:03.4]} 6. O-O {[%clk 0:02:55.2]} 6... Nge7 {[%clk
0:03:04.5]} 7. Be3 {[%clk 0:02:54.6]} 7... g5 {[%clk 0:03:05.4]} 8. d4 {[%clk
0:02:50.6]} 8... Ng6 {[%clk 0:03:03.2]} 9. Na3 {[%clk 0:02:47.2]} 9... a6 {[%clk
0:03:01.6]} 10. d5 {[%clk 0:02:44.6]} 10... Nce7 {[%clk 0:03:00.9]} 11. b4
{[%clk 0:02:43.2]} 11... Nf4 {[%clk 0:02:56.5]} 12. b5 {[%clk 0:02:39.9]} 12...
g4 {[%clk 0:02:35.5]} 13. Nd2 {[%clk 0:02:37.4]} 13... h5 {[%clk 0:02:36.7]} 14.
bxa6 {[%clk 0:02:34.8]} 14... bxa6 {[%clk 0:02:38.6]} 15. Qa4+ {[%clk
0:02:33.1]} 15... Bd7 {[%clk 0:02:39.5]} 16. Bb5 {[%clk 0:02:29.4]} 16... Bxb5
{[%clk 0:01:22.7]} 17. Nxb5 {[%clk 0:02:29]} 17... Kd8 {[%clk 0:01:21.8]} 18.
Qa5 {[%clk 0:01:56]} 18... Rc8 {[%clk 0:01:22.3]} 19. Nxc7 {[%clk 0:01:51.1]}
19... Rxc7 {[%clk 0:00:46.6]} 20. Bb6 {[%clk 0:01:51.6]} 20... Bh6 {[%clk
0:00:48.1]} 21. Bxc7+ {[%clk 0:01:51.5]} 21... Kd7 {[%clk 0:00:49.7]} 22. Nc4
{[%clk 0:01:47.2]} 22... Rc8 {[%clk 0:00:35.8]} 23. Nb6+ {[%clk 0:01:43.1]}
23... Kxc7 {[%clk 0:00:36.9]} 24. Nxc8+ {[%clk 0:01:08.9]} 24... Kxc8 {[%clk
0:00:38.8]} 25. Qxa6+ {[%clk 0:01:09.5]} 25... Kd8 {[%clk 0:00:33.9]} 26. Rab1
{[%clk 0:01:07.1]} 26... Nexd5 {[%clk 0:00:07.4]} 27. Rb8+ {[%clk 0:01:01.7]}
27... Ke7 {[%clk 0:00:08.6]} 28. Qb7+ {[%clk 0:00:59.2]} 28... Ke6 {[%clk
0:00:09.6]} 29. Re8+ {[%clk 0:00:58.5]} 29... Ne7 {[%clk 0:00:10.8]} 30. Qb3+
{[%clk 0:00:57.2]} 30... d5 {[%clk 0:00:12]} 31. exd5+ {[%clk 0:00:50.4]} 31...
Kf5 {[%clk 0:00:09.4]} 32. d6 {[%clk 0:00:45.6]} 32... Ned5 {[%clk 0:00:07.3]}
33. d7 {[%clk 0:00:44.5]} 33... Ne2+ {[%clk 0:00:04.9]} 34. Kh1 {[%clk
0:00:44.8]} 34... Ke4 {[%clk 0:00:06.2]} 35. f3+ {[%clk 0:00:41.8]} 35... gxf3
{[%clk 0:00:06.9]} 36. Qc2+ {[%clk 0:00:38.5]} 36... Ke3 {[%clk 0:00:04.7]} 37.
Rxf3+ {[%clk 0:00:39]} 37... Qxf3 {[%clk 0:00:06.1]} 38. gxf3 {[%clk 0:00:40.8]}
38... Kf2 {[%clk 0:00:07.4]} 39. d8=Q {[%clk 0:00:36.4]} 39... Ne3 {[%clk
0:00:08.7]} 40. Qh4+ {[%clk 0:00:34.1]} 40... Kxf3 {[%clk 0:00:09.4]} 41. Qce4#
{[%clk 0:00:31.8]} 1-0

[Event "*** MasterClass Titled Tuesday Blitz"]
[Site "Chess.com"]
[Date "2017.08.01"]
[Round "2"]
[White "AllStarShark"]
[Black "1e41-0"]
[Result "1-0"]
[WhiteElo "2310"]
[BlackElo "2331"]
[TimeControl "180+2"]
[EndTime "13:23:27 PDT"]
[Termination "AllStarShark won on time"]

1. e4 {[%clk 0:03:01.5]} 1... e6 {[%clk 0:02:59.5]} 2. d4 {[%clk 0:03:01.8]}
2... d5 {[%clk 0:02:58.4]} 3. Nc3 {[%clk 0:03:02.7]} 3... Bb4 {[%clk 0:02:59.8]}
4. e5 {[%clk 0:02:55.1]} 4... b6 {[%clk 0:02:59.1]} 5. Qg4 {[%clk 0:02:50.6]}
5... Bf8 {[%clk 0:02:56.5]} 6. h4 {[%clk 0:02:45.9]} 6... Qd7 {[%clk 0:02:54.1]}
7. Nf3 {[%clk 0:02:39.4]} 7... Ba6 {[%clk 0:02:52.5]} 8. a4 {[%clk 0:02:09.9]}
8... Bxf1 {[%clk 0:02:49.7]} 9. Kxf1 {[%clk 0:02:11]} 9... Nc6 {[%clk
0:02:46.6]} 10. Bd2 {[%clk 0:01:56.8]} 10... Nb4 {[%clk 0:02:43.5]} 11. Ne1
{[%clk 0:01:53.9]} 11... a5 {[%clk 0:02:43.5]} 12. Nb5 {[%clk 0:01:44.3]} 12...
Ne7 {[%clk 0:02:42.4]} 13. c3 {[%clk 0:01:37.5]} 13... Nbc6 {[%clk 0:02:40.4]}
14. h5 {[%clk 0:01:34.7]} 14... h6 {[%clk 0:02:38.8]} 15. Rh3 {[%clk 0:01:34.2]}
15... Nf5 {[%clk 0:02:36.8]} 16. Rf3 {[%clk 0:01:29]} 16... Na7 {[%clk
0:02:34.5]} 17. Nxa7 {[%clk 0:01:27.7]} 17... Rxa7 {[%clk 0:02:35.2]} 18. Qf4
{[%clk 0:01:26.8]} 18... Be7 {[%clk 0:02:30.3]} 19. g4 {[%clk 0:01:26]} 19...
Bg5 {[%clk 0:02:29.4]} 20. Qh2 {[%clk 0:01:12.4]} 20... Ne7 {[%clk 0:02:15.5]}
21. Bxg5 {[%clk 0:01:10.3]} 21... hxg5 {[%clk 0:02:17.5]} 22. Rh3 {[%clk
0:01:10.1]} 22... Ng8 {[%clk 0:02:16.1]} 23. Nd3 {[%clk 0:01:10.6]} 23... Nh6
{[%clk 0:02:15.3]} 24. f3 {[%clk 0:01:11.6]} 24... Qe7 {[%clk 0:02:15]} 25. Qc2
{[%clk 0:01:10.2]} 25... O-O {[%clk 0:02:07.1]} 26. Ke2 {[%clk 0:01:07.5]} 26...
c5 {[%clk 0:02:07.7]} 27. dxc5 {[%clk 0:01:02.6]} 27... bxc5 {[%clk 0:02:07.8]}
28. Rg3 {[%clk 0:01:00.5]} 28... c4 {[%clk 0:02:05.2]} 29. Nf2 {[%clk
0:00:57.9]} 29... Qc7 {[%clk 0:02:06.6]} 30. Kf1 {[%clk 0:00:53.5]} 30... Qxe5
{[%clk 0:02:06.9]} 31. Kg2 {[%clk 0:00:54.1]} 31... Rb7 {[%clk 0:02:05.3]} 32.
Rh3 {[%clk 0:00:41.5]} 32... Rfb8 {[%clk 0:02:06]} 33. Rb1 {[%clk 0:00:41.5]}
33... Rb6 {[%clk 0:02:02.9]} 34. Rhh1 {[%clk 0:00:39.8]} 34... R8b7 {[%clk
0:02:04.1]} 35. Qd2 {[%clk 0:00:39.4]} 35... Qf4 {[%clk 0:02:01.3]} 36. Qc2
{[%clk 0:00:33.8]} 36... Qb8 {[%clk 0:01:59.6]} 37. Nd1 {[%clk 0:00:30.3]} 37...
Rb3 {[%clk 0:01:35]} 38. Qd2 {[%clk 0:00:30.1]} 38... Qf4 {[%clk 0:01:32.5]} 39.
Qc2 {[%clk 0:00:30]} 1-0

[Event "*** MasterClass Titled Tuesday Blitz"]
[Site "Chess.com"]
[Date "2017.08.01"]
[Round "2"]
[White "RitvarsReimanis"]
[Black "ShimanovAlex"]
[Result "0-1"]
[WhiteElo "2370"]
[BlackElo "2615"]
[TimeControl "180+2"]
[EndTime "13:23:28 PDT"]
[Termination "ShimanovAlex won by resignation"]

1. d4 {[%clk 0:03:01.9]} 1... Nf6 {[%clk 0:02:56.9]} 2. c4 {[%clk 0:03:02.6]}
2... g6 {[%clk 0:02:58.8]} 3. f3 {[%clk 0:03:03.7]} 3... Bg7 {[%clk 0:02:59.8]}
4. e4 {[%clk 0:03:05.2]} 4... O-O {[%clk 0:03:01.7]} 5. Ne2 {[%clk 0:03:07]}
5... d6 {[%clk 0:03:02.9]} 6. Be3 {[%clk 0:03:08.4]} 6... Nc6 {[%clk 0:02:55.6]}
7. d5 {[%clk 0:03:07]} 7... Ne5 {[%clk 0:02:55.8]} 8. Nec3 {[%clk 0:03:08.4]}
8... c5 {[%clk 0:02:52.7]} 9. Be2 {[%clk 0:03:09.6]} 9... e6 {[%clk 0:02:52.3]}
10. O-O {[%clk 0:03:10.5]} 10... exd5 {[%clk 0:02:53.2]} 11. cxd5 {[%clk
0:03:11.6]} 11... a6 {[%clk 0:02:53.4]} 12. a4 {[%clk 0:03:12.9]} 12... Ne8
{[%clk 0:02:51.3]} 13. f4 {[%clk 0:03:12]} 13... Nd7 {[%clk 0:02:52]} 14. Nd2
{[%clk 0:03:02.8]} 14... Rb8 {[%clk 0:02:48.4]} 15. Bd3 {[%clk 0:02:54.3]} 15...
f5 {[%clk 0:02:37.9]} 16. exf5 {[%clk 0:02:54.8]} 16... gxf5 {[%clk 0:02:38.2]}
17. Nf3 {[%clk 0:02:45]} 17... Ndf6 {[%clk 0:02:38.8]} 18. Ng5 {[%clk
0:02:45.1]} 18... Nc7 {[%clk 0:02:39.6]} 19. a5 {[%clk 0:02:33.1]} 19... Ng4
{[%clk 0:02:39.4]} 20. Bd2 {[%clk 0:02:21.4]} 20... h6 {[%clk 0:02:31]} 21. Nf3
{[%clk 0:02:22.2]} 21... Bd7 {[%clk 0:02:31.3]} 22. Qc2 {[%clk 0:02:14.9]} 22...
Nb5 {[%clk 0:02:28.7]} 23. Ne2 {[%clk 0:02:08.4]} 23... Qe7 {[%clk 0:02:16.6]}
24. Rae1 {[%clk 0:02:03.9]} 24... Qf7 {[%clk 0:02:12.4]} 25. h3 {[%clk
0:02:00.4]} 25... Nf6 {[%clk 0:02:12.3]} 26. Bxf5 {[%clk 0:01:58.4]} 26... Bxf5
{[%clk 0:02:11.5]} 27. Qxf5 {[%clk 0:02:00.3]} 27... Nxd5 {[%clk 0:02:12.3]} 28.
Qxf7+ {[%clk 0:01:44.8]} 28... Rxf7 {[%clk 0:02:14.2]} 29. b3 {[%clk 0:01:31.6]}
29... Re8 {[%clk 0:02:12.7]} 30. g3 {[%clk 0:01:24.7]} 30... Rfe7 {[%clk
0:02:12.3]} 31. Nc1 {[%clk 0:01:21.9]} 31... Nd4 {[%clk 0:02:11.2]} 32. Rxe7
{[%clk 0:01:19.9]} 32... Rxe7 {[%clk 0:02:11.4]} 33. Kg2 {[%clk 0:01:14.9]}
33... Ne3+ {[%clk 0:02:10]} 34. Bxe3 {[%clk 0:01:15.8]} 34... Rxe3 {[%clk
0:02:11.9]} 35. Nxd4 {[%clk 0:01:14.4]} 35... Bxd4 {[%clk 0:02:12.7]} 36. Rd1
{[%clk 0:01:01.4]} 36... h5 {[%clk 0:02:06.9]} 37. h4 {[%clk 0:00:57.9]} 37...
Kf7 {[%clk 0:02:06.7]} 38. Nd3 {[%clk 0:00:58.5]} 38... Ke6 {[%clk 0:02:06.3]}
39. Re1 {[%clk 0:00:46.3]} 39... Rxe1 {[%clk 0:02:05.6]} 40. Nxe1 {[%clk
0:00:46.9]} 40... Bc3 {[%clk 0:02:07.1]} 41. Nd3 {[%clk 0:00:46.1]} 41... Bxa5
{[%clk 0:02:06.9]} 42. Kf3 {[%clk 0:00:47.7]} 42... Bd2 {[%clk 0:01:55.9]} 43.
g4 {[%clk 0:00:47.9]} 43... hxg4+ {[%clk 0:01:55.8]} 44. Kxg4 {[%clk 0:00:49.8]}
44... b5 {[%clk 0:01:53.4]} 45. h5 {[%clk 0:00:50.7]} 45... c4 {[%clk
0:01:54.6]} 46. bxc4 {[%clk 0:00:50.7]} 46... bxc4 {[%clk 0:01:56.5]} 47. Nf2
{[%clk 0:00:44.8]} 47... d5 {[%clk 0:01:50.8]} 48. h6 {[%clk 0:00:42.4]} 48...
Kf6 {[%clk 0:01:46.3]} 49. h7 {[%clk 0:00:31.4]} 49... Kg7 {[%clk 0:01:47.1]}
50. Kf5 {[%clk 0:00:31.5]} 50... a5 {[%clk 0:01:39.6]} 51. Ke6 {[%clk
0:00:21.5]} 51... a4 {[%clk 0:01:40.5]} 52. f5 {[%clk 0:00:21.6]} 52... a3
{[%clk 0:01:40.7]} 53. f6+ {[%clk 0:00:22.6]} 53... Kxh7 {[%clk 0:01:41.7]} 54.
Ng4 {[%clk 0:00:21]} 54... a2 {[%clk 0:01:40.9]} 55. f7 {[%clk 0:00:19.4]} 55...
Bb4 {[%clk 0:01:38.9]} 56. Nf6+ {[%clk 0:00:20.7]} 56... Kg6 {[%clk 0:01:38.6]}
57. Nxd5 {[%clk 0:00:22.2]} 57... a1=Q {[%clk 0:01:37]} 0-1

[Event "*** MasterClass Titled Tuesday Blitz"]
[Site "Chess.com"]
[Date "2017.08.01"]
[Round "2"]
[White "joppie2"]
[Black "nutibara"]
[Result "1-0"]
[WhiteElo "2606"]
[BlackElo "2238"]
[TimeControl "180+2"]
[EndTime "13:23:32 PDT"]
[Termination "joppie2 won by resignation"]

1. e4 {[%clk 0:03:01.9]} 1... c5 {[%clk 0:02:54.7]} 2. Nf3 {[%clk 0:03:02.2]}
2... Nc6 {[%clk 0:02:56.2]} 3. d4 {[%clk 0:03:03.8]} 3... cxd4 {[%clk 0:02:57]}
4. Nxd4 {[%clk 0:03:05.7]} 4... Nf6 {[%clk 0:02:58.5]} 5. Nc3 {[%clk 0:03:07.1]}
5... e6 {[%clk 0:02:59.4]} 6. Ndb5 {[%clk 0:03:06.4]} 6... d6 {[%clk 0:03:00.2]}
7. Bf4 {[%clk 0:03:06.9]} 7... e5 {[%clk 0:03:00.5]} 8. Bg5 {[%clk 0:03:08.6]}
8... a6 {[%clk 0:03:02]} 9. Na3 {[%clk 0:03:10.2]} 9... b5 {[%clk 0:03:03.5]}
10. Nd5 {[%clk 0:03:11.9]} 10... Be7 {[%clk 0:03:04.6]} 11. Bxf6 {[%clk
0:03:12.9]} 11... Bxf6 {[%clk 0:03:06.5]} 12. c3 {[%clk 0:03:14.5]} 12... Bg5
{[%clk 0:03:07.1]} 13. Nc2 {[%clk 0:03:15.6]} 13... Ne7 {[%clk 0:03:04]} 14.
Ncb4 {[%clk 0:03:06.5]} 14... O-O {[%clk 0:03:03.7]} 15. a4 {[%clk 0:03:04.4]}
15... bxa4 {[%clk 0:03:03.9]} 16. Rxa4 {[%clk 0:03:03.7]} 16... a5 {[%clk
0:03:04.9]} 17. Nxe7+ {[%clk 0:03:04.1]} 17... Qxe7 {[%clk 0:03:06.3]} 18. Nd5
{[%clk 0:03:04.1]} 18... Qb7 {[%clk 0:03:07.1]} 19. b3 {[%clk 0:02:56.6]} 19...
Be6 {[%clk 0:03:01.7]} 20. Bc4 {[%clk 0:02:56.6]} 20... Rfc8 {[%clk 0:03:00.7]}
21. Qd3 {[%clk 0:02:53.9]} 21... Qc6 {[%clk 0:02:51.1]} 22. O-O {[%clk 0:02:54]}
22... Bd8 {[%clk 0:02:42.5]} 23. Rfa1 {[%clk 0:02:53.7]} 23... Rab8 {[%clk
0:02:42.1]} 24. g3 {[%clk 0:02:46.4]} 24... Bxd5 {[%clk 0:02:42.5]} 25. exd5
{[%clk 0:01:46.5]} 25... Qc5 {[%clk 0:02:42.6]} 26. Rc1 {[%clk 0:01:38.6]} 26...
Bb6 {[%clk 0:02:42.6]} 27. Rc2 {[%clk 0:01:38.6]} 27... Re8 {[%clk 0:02:29.5]}
28. Bb5 {[%clk 0:01:38.2]} 28... Re7 {[%clk 0:02:26.1]} 29. Rc4 {[%clk
0:01:38.3]} 29... Qa3 {[%clk 0:01:26.2]} 30. Ba4 {[%clk 0:01:38.1]} 30... Bc5
{[%clk 0:00:55.4]} 31. Qd1 {[%clk 0:01:34.6]} 31... e4 {[%clk 0:00:49.8]} 32.
Kg2 {[%clk 0:01:33.9]} 32... g6 {[%clk 0:00:23.9]} 33. Qb1 {[%clk 0:01:33.4]}
33... Reb7 {[%clk 0:00:05.8]} 34. Ra2 {[%clk 0:01:32.9]} 34... Rxb3 {[%clk
0:00:04.5]} 35. Bxb3 {[%clk 0:01:34.8]} 35... Qxb3 {[%clk 0:00:05.1]} 36. Qxb3
{[%clk 0:01:34.7]} 36... Rxb3 {[%clk 0:00:07]} 37. Rxa5 {[%clk 0:01:36.6]} 37...
Rb2 {[%clk 0:00:07.5]} 38. Raxc5 {[%clk 0:01:37.6]} 38... dxc5 {[%clk
0:00:08.1]} 39. Rxc5 {[%clk 0:01:38.3]} 39... e3 {[%clk 0:00:09]} 40. Kf3 {[%clk
0:01:38.3]} 40... e2 {[%clk 0:00:07.9]} 41. Rc8+ {[%clk 0:01:39.1]} 41... Kg7
{[%clk 0:00:08.6]} 42. Re8 {[%clk 0:01:41]} 42... Rd2 {[%clk 0:00:08.3]} 43. c4
{[%clk 0:01:31.3]} 43... Rd4 {[%clk 0:00:05.4]} 44. Rxe2 {[%clk 0:01:30.3]}
44... Rxc4 {[%clk 0:00:06.2]} 45. Rd2 {[%clk 0:01:32]} 45... Kf8 {[%clk
0:00:05.3]} 46. d6 {[%clk 0:01:28.1]} 46... Ke8 {[%clk 0:00:05]} 47. Re2+ {[%clk
0:01:29.8]} 47... Kf8 {[%clk 0:00:04]} 48. d7 {[%clk 0:01:29.4]} 48... Rd4
{[%clk 0:00:04.7]} 49. Re8+ {[%clk 0:01:29.5]} 49... Kg7 {[%clk 0:00:05.1]} 50.
d8=Q {[%clk 0:01:30.7]} 1-0

[Event "*** MasterClass Titled Tuesday Blitz"]
[Site "Chess.com"]
[Date "2017.08.01"]
[Round "2"]
[White "OldweakGM"]
[Black "Keaton87"]
[Result "1-0"]
[WhiteElo "2621"]
[BlackElo "2490"]
[TimeControl "180+2"]
[EndTime "13:23:33 PDT"]
[Termination "OldweakGM won by checkmate"]

1. Nf3 {[%clk 0:03:01.9]} 1... d5 {[%clk 0:03:00.7]} 2. d4 {[%clk 0:03:02.6]}
2... Nf6 {[%clk 0:03:01.5]} 3. Bf4 {[%clk 0:03:03.7]} 3... c5 {[%clk 0:03:01.6]}
4. e3 {[%clk 0:03:04.7]} 4... Nc6 {[%clk 0:03:02.5]} 5. c3 {[%clk 0:03:05.8]}
5... Qb6 {[%clk 0:03:02.2]} 6. Qb3 {[%clk 0:03:04.2]} 6... c4 {[%clk 0:03:03.3]}
7. Qc2 {[%clk 0:03:05.8]} 7... Bf5 {[%clk 0:03:04.6]} 8. Qc1 {[%clk 0:03:07.4]}
8... Qd8 {[%clk 0:03:03.6]} 9. Nbd2 {[%clk 0:03:04.5]} 9... b5 {[%clk
0:03:02.6]} 10. Be2 {[%clk 0:03:05.7]} 10... h6 {[%clk 0:03:03]} 11. Ne5 {[%clk
0:03:03.2]} 11... Nxe5 {[%clk 0:03:01.9]} 12. dxe5 {[%clk 0:03:03.2]} 12... Ne4
{[%clk 0:03:00.8]} 13. Nf3 {[%clk 0:02:56.2]} 13... Nc5 {[%clk 0:03:01.3]} 14.
Nd4 {[%clk 0:02:45.7]} 14... Bd3 {[%clk 0:02:52.3]} 15. e6 {[%clk 0:02:27.8]}
15... fxe6 {[%clk 0:02:45.6]} 16. b4 {[%clk 0:02:07.9]} 16... cxb3 {[%clk
0:02:04.3]} 17. Nxe6 {[%clk 0:02:07.4]} 17... Nxe6 {[%clk 0:01:56.1]} 18. Bxd3
{[%clk 0:02:07.4]} 18... Nxf4 {[%clk 0:01:56.8]} 19. exf4 {[%clk 0:02:08]} 19...
bxa2 {[%clk 0:01:41.2]} 20. Bg6+ {[%clk 0:02:06.5]} 20... Kd7 {[%clk 0:01:41.3]}
21. O-O {[%clk 0:02:07.3]} 21... Qb6 {[%clk 0:01:39.3]} 22. f5 {[%clk 0:02:01]}
22... e5 {[%clk 0:01:24.8]} 23. Bf7 {[%clk 0:01:44.3]} 23... Qc5 {[%clk
0:01:15]} 24. Bxd5 {[%clk 0:01:44.2]} 24... Rd8 {[%clk 0:01:11.1]} 25. Rxa2
{[%clk 0:01:43.3]} 25... Bd6 {[%clk 0:01:10.4]} 26. Be6+ {[%clk 0:01:23]} 26...
Ke7 {[%clk 0:01:09.9]} 27. Qd1 {[%clk 0:01:20.3]} 27... g6 {[%clk 0:00:47.6]}
28. Qg4 {[%clk 0:01:11.6]} 28... gxf5 {[%clk 0:00:48]} 29. Bxf5 {[%clk
0:01:11.4]} 29... Rdg8 {[%clk 0:00:40]} 30. Qf3 {[%clk 0:01:01]} 30... Rf8
{[%clk 0:00:29.4]} 31. Qh3 {[%clk 0:00:49.2]} 31... Bc7 {[%clk 0:00:14.9]} 32.
Rd2 {[%clk 0:00:43.6]} 32... Rf6 {[%clk 0:00:12.5]} 33. Rd7+ {[%clk 0:00:41.5]}
33... Kf8 {[%clk 0:00:13.8]} 34. Be4 {[%clk 0:00:17.9]} 34... Rg8 {[%clk
0:00:14.4]} 35. Qh4 {[%clk 0:00:18.6]} 35... Rg5 {[%clk 0:00:14.6]} 36. Kh1
{[%clk 0:00:16.5]} 36... Bb6 {[%clk 0:00:13.9]} 37. Rh7 {[%clk 0:00:16.8]} 37...
Rxf2 {[%clk 0:00:08.2]} 38. Qxh6+ {[%clk 0:00:17.1]} 38... Ke8 {[%clk 0:00:08]}
39. Qe6+ {[%clk 0:00:18.1]} 39... Kf8 {[%clk 0:00:07]} 40. Rh8+ {[%clk
0:00:19.5]} 40... Kg7 {[%clk 0:00:08]} 41. Rg8# {[%clk 0:00:21.2]} 1-0